[Event "Early-Titled-Tuesday-Blitz-March-05-2024"]
[Site "Chess.com"]
[Date "2024.03.05"]
[Round "7"]
[White "RandomNoob04"]
[Black "Rodalquilar"]
[Result "0-1"]
[WhiteElo "2599"]
[BlackElo "2812"]
[TimeControl "180+1"]
[EndTime "9:17:14 PST"]
[Termination "Rodalquilar won by resignation"]

1. e4 {[%clk 0:02:57.3]} 1... d5 {[%clk 0:03:00.3]} 2. exd5 {[%clk 0:02:57.4]}
2... Qxd5 {[%clk 0:03:01.2]} 3. Nc3 {[%clk 0:02:57.7]} 3... Qa5 {[%clk
0:03:01.5]} 4. d4 {[%clk 0:02:58.6]} 4... Nf6 {[%clk 0:03:01.7]} 5. Nf3 {[%clk
0:02:58.7]} 5... Bf5 {[%clk 0:03:02.1]} 6. Bc4 {[%clk 0:02:58.5]} 6... e6 {[%clk
0:03:02.5]} 7. Bd2 {[%clk 0:02:59.1]} 7... Bb4 {[%clk 0:03:02.4]} 8. a3 {[%clk
0:02:59.5]} 8... Bxc3 {[%clk 0:03:02.9]} 9. Bxc3 {[%clk 0:03:00.4]} 9... Qb6
{[%clk 0:03:03.5]} 10. d5 {[%clk 0:03:01.3]} 10... exd5 {[%clk 0:03:01.9]} 11.
Bxd5 {[%clk 0:03:01.3]} 11... O-O {[%clk 0:03:02.3]} 12. Bxf6 {[%clk 0:03:01.5]}
12... gxf6 {[%clk 0:03:03.2]} 13. O-O {[%clk 0:03:01]} 13... Bg6 {[%clk
0:03:02.3]} 14. Nh4 {[%clk 0:02:50.3]} 14... c6 {[%clk 0:02:52.4]} 15. Bb3
{[%clk 0:02:49.7]} 15... Qc7 {[%clk 0:02:39.2]} 16. Qf3 {[%clk 0:02:32.5]} 16...
Nd7 {[%clk 0:02:36]} 17. Rfe1 {[%clk 0:02:28.9]} 17... Rae8 {[%clk 0:02:32.4]}
18. Rad1 {[%clk 0:02:18.3]} 18... Re5 {[%clk 0:02:30.9]} 19. Re3 {[%clk
0:02:00.2]} 19... Rfe8 {[%clk 0:02:18.6]} 20. Rxe5 {[%clk 0:01:36]} 20... Qxe5
{[%clk 0:02:15.3]} 21. h3 {[%clk 0:01:26.2]} 21... Nc5 {[%clk 0:02:15.3]} 22.
Bc4 {[%clk 0:01:12.1]} 22... Bxc2 {[%clk 0:01:54.6]} 23. Rc1 {[%clk 0:01:12.1]}
23... Qxb2 {[%clk 0:01:47.2]} 24. Qg3+ {[%clk 0:01:07.8]} 24... Bg6 {[%clk
0:01:43.1]} 25. Nxg6 {[%clk 0:01:00]} 25... Qxc1+ {[%clk 0:01:42.8]} 26. Kh2
{[%clk 0:01:00.6]} 26... Qg5 {[%clk 0:01:40]} 27. Qd6 {[%clk 0:00:44]} 27...
hxg6 {[%clk 0:01:36.6]} 0-1

[Event "Early-Titled-Tuesday-Blitz-March-05-2024"]
[Site "Chess.com"]
[Date "2024.03.05"]
[Round "7"]
[White "Byniolus"]
[Black "bulletteemo"]
[Result "1-0"]
[WhiteElo "2811"]
[BlackElo "2595"]
[TimeControl "180+1"]
[EndTime "9:17:20 PST"]
[Termination "Byniolus won by resignation"]

1. d4 {[%clk 0:03:00.9]} 1... Nf6 {[%clk 0:02:59.2]} 2. Nf3 {[%clk 0:03:00.8]}
2... e6 {[%clk 0:02:58.1]} 3. Bf4 {[%clk 0:03:00.8]} 3... c5 {[%clk 0:02:57.5]}
4. c3 {[%clk 0:03:01.1]} 4... Nc6 {[%clk 0:02:57.1]} 5. e3 {[%clk 0:03:01.3]}
5... d5 {[%clk 0:02:56.8]} 6. Nbd2 {[%clk 0:03:01.3]} 6... Bd6 {[%clk
0:02:56.4]} 7. Bg3 {[%clk 0:03:01.9]} 7... b6 {[%clk 0:02:51.9]} 8. Bb5 {[%clk
0:03:01.5]} 8... Bb7 {[%clk 0:02:35.2]} 9. Qa4 {[%clk 0:02:58.5]} 9... Qc7
{[%clk 0:02:15.2]} 10. Bxd6 {[%clk 0:02:52.2]} 10... Qxd6 {[%clk 0:02:14.5]} 11.
Ne5 {[%clk 0:02:52.9]} 11... Rc8 {[%clk 0:01:34.2]} 12. Qxa7 {[%clk 0:02:52.9]}
12... Qc7 {[%clk 0:01:31.3]} 13. dxc5 {[%clk 0:02:33.9]} 13... bxc5 {[%clk
0:01:19.8]} 14. Nxc6 {[%clk 0:02:31]} 14... Bxc6 {[%clk 0:01:14.7]} 15. Qxc5
{[%clk 0:02:31.3]} 15... Qb7 {[%clk 0:01:09.8]} 16. a4 {[%clk 0:02:16.6]} 16...
Bxb5 {[%clk 0:01:00.5]} 17. Qxb5+ {[%clk 0:02:17.5]} 17... Qxb5 {[%clk
0:01:00.6]} 18. axb5 {[%clk 0:02:18.4]} 18... Rb8 {[%clk 0:00:47]} 19. b3 {[%clk
0:02:12.2]} 19... Ke7 {[%clk 0:00:36.6]} 20. c4 {[%clk 0:02:12.3]} 20... Rhd8
{[%clk 0:00:31.6]} 21. Ke2 {[%clk 0:02:08.4]} 21... e5 {[%clk 0:00:29]} 22. Ra7+
{[%clk 0:02:07]} 22... Ke6 {[%clk 0:00:29.2]} 23. Rha1 {[%clk 0:02:04.1]} 23...
Nd7 {[%clk 0:00:22.7]} 24. R1a6+ {[%clk 0:02:00.3]} 24... Kf5 {[%clk 0:00:16.4]}
25. Rd6 {[%clk 0:01:55.4]} 25... Nc5 {[%clk 0:00:14.8]} 26. Rxf7+ {[%clk
0:01:54.2]} 1-0

[Event "Early-Titled-Tuesday-Blitz-March-05-2024"]
[Site "Chess.com"]
[Date "2024.03.05"]
[Round "7"]
[White "alvarorodriguezavila"]
[Black "SergioMoralesG"]
[Result "0-1"]
[WhiteElo "2336"]
[BlackElo "2499"]
[TimeControl "180+1"]
[EndTime "9:17:37 PST"]
[Termination "SergioMoralesG won by resignation"]

1. e4 {[%clk 0:03:00.9]} 1... c5 {[%clk 0:02:58.8]} 2. d4 {[%clk 0:03:00.7]}
2... cxd4 {[%clk 0:02:58.7]} 3. c3 {[%clk 0:03:01.4]} 3... d3 {[%clk 0:02:59.1]}
4. Bxd3 {[%clk 0:03:01.2]} 4... Nc6 {[%clk 0:02:59.6]} 5. Nf3 {[%clk 0:03:00.8]}
5... g6 {[%clk 0:03:00.2]} 6. c4 {[%clk 0:03:00.5]} 6... Bg7 {[%clk 0:02:59.7]}
7. O-O {[%clk 0:02:59.3]} 7... d6 {[%clk 0:02:59.5]} 8. h3 {[%clk 0:02:59.2]}
8... Nf6 {[%clk 0:02:58.1]} 9. Nc3 {[%clk 0:02:59.5]} 9... O-O {[%clk
0:02:58.2]} 10. Be3 {[%clk 0:02:49.2]} 10... Qa5 {[%clk 0:02:50.2]} 11. Rc1
{[%clk 0:02:48.8]} 11... h6 {[%clk 0:02:38.6]} 12. Qd2 {[%clk 0:02:47.3]} 12...
Kh7 {[%clk 0:02:38.6]} 13. b3 {[%clk 0:02:44.3]} 13... Qh5 {[%clk 0:02:36]} 14.
Rfd1 {[%clk 0:02:34.6]} 14... Bxh3 {[%clk 0:02:30.1]} 15. gxh3 {[%clk
0:02:34.4]} 15... Qxf3 {[%clk 0:02:30]} 16. Kh2 {[%clk 0:01:36.3]} 16... Nh5
{[%clk 0:02:23.6]} 17. Rh1 {[%clk 0:01:33.7]} 17... Be5+ {[%clk 0:01:42.4]} 18.
Kg1 {[%clk 0:01:34.1]} 18... Nf4 {[%clk 0:01:40.4]} 19. Bf1 {[%clk 0:01:33.7]}
19... f5 {[%clk 0:01:32.7]} 20. Qd1 {[%clk 0:01:21.2]} 20... fxe4 {[%clk
0:01:24.3]} 21. Qc2 {[%clk 0:00:41.6]} 21... Bxc3 {[%clk 0:01:10.4]} 22. Qxc3
{[%clk 0:00:42]} 22... Rf5 {[%clk 0:01:10]} 23. h4 {[%clk 0:00:40.3]} 23... Qg4+
{[%clk 0:01:07.4]} 0-1

[Event "Early-Titled-Tuesday-Blitz-March-05-2024"]
[Site "Chess.com"]
[Date "2024.03.05"]
[Round "7"]
[White "Knightmare1014"]
[Black "Barmen_EV"]
[Result "0-1"]
[WhiteElo "2315"]
[BlackElo "2482"]
[TimeControl "180+1"]
[EndTime "9:17:37 PST"]
[Termination "Barmen_EV won by checkmate"]

1. e4 {[%clk 0:03:00.9]} 1... c5 {[%clk 0:02:55.7]} 2. Nf3 {[%clk 0:03:01.4]}
2... Nc6 {[%clk 0:02:55.1]} 3. d4 {[%clk 0:03:01.2]} 3... cxd4 {[%clk 0:02:56]}
4. Nxd4 {[%clk 0:03:01.8]} 4... e5 {[%clk 0:02:56.7]} 5. Nb5 {[%clk 0:03:01.6]}
5... d6 {[%clk 0:02:55.7]} 6. N1c3 {[%clk 0:02:58.9]} 6... a6 {[%clk 0:02:56.1]}
7. Na3 {[%clk 0:02:58.6]} 7... Be6 {[%clk 0:02:57]} 8. Nd5 {[%clk 0:02:33.8]}
8... Nf6 {[%clk 0:02:56.4]} 9. Bg5 {[%clk 0:02:32.1]} 9... Qa5+ {[%clk
0:02:54.7]} 10. Bd2 {[%clk 0:02:26.2]} 10... Qd8 {[%clk 0:02:55.1]} 11. Nxf6+
{[%clk 0:02:02.2]} 11... Qxf6 {[%clk 0:02:56]} 12. c3 {[%clk 0:02:01.3]} 12...
Be7 {[%clk 0:02:55.2]} 13. Nc2 {[%clk 0:02:00.8]} 13... O-O {[%clk 0:02:54.7]}
14. Be2 {[%clk 0:01:59.7]} 14... d5 {[%clk 0:02:52.8]} 15. exd5 {[%clk
0:01:55.9]} 15... Bxd5 {[%clk 0:02:53.7]} 16. Ne3 {[%clk 0:01:55.9]} 16... Be6
{[%clk 0:02:53.2]} 17. O-O {[%clk 0:01:54.5]} 17... Rad8 {[%clk 0:02:52.6]} 18.
Qc1 {[%clk 0:01:53.2]} 18... e4 {[%clk 0:02:46.3]} 19. Nc2 {[%clk 0:01:41.5]}
19... Qg6 {[%clk 0:02:42.7]} 20. Bf4 {[%clk 0:01:39.4]} 20... Bg4 {[%clk
0:02:31.6]} 21. Bxg4 {[%clk 0:01:31.6]} 21... Qxg4 {[%clk 0:02:32.5]} 22. Bg3
{[%clk 0:01:31.8]} 22... Bg5 {[%clk 0:02:25]} 23. Ne3 {[%clk 0:01:29.1]} 23...
Qe6 {[%clk 0:02:22.7]} 24. Qc2 {[%clk 0:01:27.1]} 24... f5 {[%clk 0:02:21.4]}
25. Bc7 {[%clk 0:00:59.3]} 25... Rd7 {[%clk 0:02:18.3]} 26. Bb6 {[%clk
0:00:59.4]} 26... f4 {[%clk 0:02:14.5]} 27. Nd1 {[%clk 0:00:57.8]} 27... f3
{[%clk 0:02:11.9]} 28. Ne3 {[%clk 0:00:47.8]} 28... Bxe3 {[%clk 0:02:11.1]} 29.
fxe3 {[%clk 0:00:42.6]} 29... Qg4 {[%clk 0:02:10.7]} 30. Kh1 {[%clk 0:00:32.2]}
30... Ne5 {[%clk 0:02:08.2]} 31. Bd4 {[%clk 0:00:28.2]} 31... Nd3 {[%clk
0:02:04.7]} 32. gxf3 {[%clk 0:00:20.7]} 32... exf3 {[%clk 0:02:04]} 33. Rg1
{[%clk 0:00:20.8]} 33... Qe4 {[%clk 0:02:04.3]} 34. Rad1 {[%clk 0:00:19.4]}
34... f2+ {[%clk 0:02:03.1]} 35. Rg2 {[%clk 0:00:19.3]} 35... f1=Q+ {[%clk
0:02:03.7]} 36. Rxf1 {[%clk 0:00:19.3]} 36... Rxf1# {[%clk 0:02:04.5]} 0-1

[Event "Early-Titled-Tuesday-Blitz-March-05-2024"]
[Site "Chess.com"]
[Date "2024.03.05"]
[Round "7"]
[White "abc_xyz4744"]
[Black "MANOJ_MISHRA123"]
[Result "1-0"]
[WhiteElo "2434"]
[BlackElo "2265"]
[TimeControl "180+1"]
[EndTime "9:17:40 PST"]
[Termination "abc_xyz4744 won by resignation"]

1. e4 {[%clk 0:02:55.2]} 1... d6 {[%clk 0:02:50.4]} 2. d4 {[%clk 0:02:53.5]}
2... Nf6 {[%clk 0:02:50.1]} 3. Nc3 {[%clk 0:02:53.1]} 3... e5 {[%clk 0:02:49.9]}
4. dxe5 {[%clk 0:02:52.9]} 4... dxe5 {[%clk 0:02:49.7]} 5. Qxd8+ {[%clk
0:02:53]} 5... Kxd8 {[%clk 0:02:50.5]} 6. Bc4 {[%clk 0:02:53.6]} 6... Bb4 {[%clk
0:02:25.6]} 7. Bg5 {[%clk 0:02:51.7]} 7... Ke7 {[%clk 0:02:21.4]} 8. O-O-O
{[%clk 0:02:42.8]} 8... Bxc3 {[%clk 0:02:12.6]} 9. bxc3 {[%clk 0:02:43.7]} 9...
Be6 {[%clk 0:02:09.7]} 10. Bxe6 {[%clk 0:02:37.7]} 10... Kxe6 {[%clk 0:02:08.4]}
11. Bxf6 {[%clk 0:02:37.4]} 11... Kxf6 {[%clk 0:02:05]} 12. Nf3 {[%clk 0:02:38]}
12... Ke6 {[%clk 0:01:59.8]} 13. Rd5 {[%clk 0:02:33.1]} 13... f6 {[%clk
0:01:58.7]} 14. Rhd1 {[%clk 0:02:31.7]} 14... Ke7 {[%clk 0:01:53.3]} 15. Nh4
{[%clk 0:02:20.6]} 15... g6 {[%clk 0:01:51.4]} 16. g3 {[%clk 0:02:20.4]} 16...
c6 {[%clk 0:01:42.1]} 17. R5d3 {[%clk 0:02:20.3]} 17... b5 {[%clk 0:01:16.9]}
18. f4 {[%clk 0:02:18.2]} 18... Na6 {[%clk 0:01:15.6]} 19. Rd7+ {[%clk
0:02:17.4]} 19... Ke8 {[%clk 0:01:15.3]} 20. Nf3 {[%clk 0:01:51.5]} 20... Nc5
{[%clk 0:00:59.6]} 21. Rc7 {[%clk 0:01:45.7]} 21... Nxe4 {[%clk 0:00:59.3]} 22.
fxe5 {[%clk 0:01:38.3]} 22... Nxc3 {[%clk 0:00:40.8]} 23. Rdd7 {[%clk
0:01:34.5]} 23... Nd5 {[%clk 0:00:38.7]} 24. Rb7 {[%clk 0:01:33.8]} 24... Rd8
{[%clk 0:00:33]} 25. Rxd8+ {[%clk 0:01:32.4]} 1-0

[Event "Early-Titled-Tuesday-Blitz-March-05-2024"]
[Site "Chess.com"]
[Date "2024.03.05"]
[Round "7"]
[White "tusplingher"]
[Black "javirec"]
[Result "1-0"]
[WhiteElo "2439"]
[BlackElo "2262"]
[TimeControl "180+1"]
[EndTime "9:17:45 PST"]
[Termination "tusplingher won by checkmate"]

1. Nf3 {[%clk 0:03:00.9]} 1... Nf6 {[%clk 0:02:56.1]} 2. c4 {[%clk 0:02:59.9]}
2... d6 {[%clk 0:02:54.8]} 3. g3 {[%clk 0:02:59.9]} 3... g6 {[%clk 0:02:53.8]}
4. d4 {[%clk 0:02:59.7]} 4... Bg7 {[%clk 0:02:52.3]} 5. Nc3 {[%clk 0:03:00.4]}
5... Bf5 {[%clk 0:02:52]} 6. Bg2 {[%clk 0:03:00.5]} 6... Ne4 {[%clk 0:02:49.7]}
7. Nh4 {[%clk 0:02:58.9]} 7... Nxc3 {[%clk 0:02:49.2]} 8. bxc3 {[%clk
0:02:58.5]} 8... Bc8 {[%clk 0:02:49.2]} 9. O-O {[%clk 0:02:57.9]} 9... O-O
{[%clk 0:02:49.1]} 10. Rb1 {[%clk 0:02:55.8]} 10... Nc6 {[%clk 0:02:46]} 11. Nf3
{[%clk 0:02:51.6]} 11... e5 {[%clk 0:02:43.5]} 12. Ba3 {[%clk 0:02:46.6]} 12...
Re8 {[%clk 0:02:41.5]} 13. dxe5 {[%clk 0:02:37.6]} 13... dxe5 {[%clk 0:02:33.7]}
14. Qxd8 {[%clk 0:02:36.4]} 14... Rxd8 {[%clk 0:02:33.7]} 15. Ng5 {[%clk
0:02:37.1]} 15... Bf5 {[%clk 0:02:29.6]} 16. Rxb7 {[%clk 0:02:34.2]} 16... Na5
{[%clk 0:02:07.8]} 17. Rb5 {[%clk 0:02:17.7]} 17... Nxc4 {[%clk 0:02:05.4]} 18.
Bxa8 {[%clk 0:02:16.5]} 18... Nxa3 {[%clk 0:02:05.5]} 19. Rb3 {[%clk 0:02:12]}
19... Nc4 {[%clk 0:02:01.8]} 20. Bd5 {[%clk 0:02:00.1]} 20... Rxd5 {[%clk
0:01:57.9]} 21. Rb8+ {[%clk 0:01:59]} 21... Bf8 {[%clk 0:01:56.2]} 22. e4 {[%clk
0:01:59.5]} 22... Ra5 {[%clk 0:01:45.2]} 23. exf5 {[%clk 0:01:57.4]} 23... Rxa2
{[%clk 0:01:45.9]} 24. f6 {[%clk 0:01:42.9]} 24... Nd6 {[%clk 0:01:37]} 25. Rd1
{[%clk 0:01:37.2]} 25... a5 {[%clk 0:01:30.6]} 26. Ne4 {[%clk 0:01:29.9]} 26...
a4 {[%clk 0:01:21.6]} 27. Nc5 {[%clk 0:01:29.6]} 27... a3 {[%clk 0:01:12.9]} 28.
Nd7 {[%clk 0:01:28]} 28... h5 {[%clk 0:01:13.5]} 29. Nxf8 {[%clk 0:01:15]} 29...
Rc2 {[%clk 0:01:05]} 30. Ne6+ {[%clk 0:00:59.5]} 30... Kh7 {[%clk 0:01:04.3]}
31. Ng5+ {[%clk 0:01:00.4]} 31... Kh6 {[%clk 0:01:04.4]} 32. h4 {[%clk
0:01:01.3]} 32... a2 {[%clk 0:01:03]} 33. Rh8# {[%clk 0:01:01]} 1-0

[Event "Early-Titled-Tuesday-Blitz-March-05-2024"]
[Site "Chess.com"]
[Date "2024.03.05"]
[Round "7"]
[White "fandebobbyfischer"]
[Black "Christian_Jordan"]
[Result "1-0"]
[WhiteElo "2705"]
[BlackElo "2096"]
[TimeControl "180+1"]
[EndTime "9:17:52 PST"]
[Termination "fandebobbyfischer won by resignation"]

1. e4 {[%clk 0:03:00.9]} 1... e6 {[%clk 0:02:58.6]} 2. d4 {[%clk 0:03:00.3]}
2... d5 {[%clk 0:02:58.5]} 3. Nd2 {[%clk 0:03:00.5]} 3... Be7 {[%clk 0:02:56.8]}
4. Ngf3 {[%clk 0:02:56.5]} 4... Nf6 {[%clk 0:02:55.9]} 5. Bd3 {[%clk 0:02:51.5]}
5... c5 {[%clk 0:02:35.3]} 6. exd5 {[%clk 0:02:47.7]} 6... Qxd5 {[%clk
0:02:19.6]} 7. Bc4 {[%clk 0:02:44.8]} 7... Qd8 {[%clk 0:02:12.4]} 8. O-O {[%clk
0:02:45]} 8... cxd4 {[%clk 0:02:10.3]} 9. Nb3 {[%clk 0:02:44.6]} 9... Nc6 {[%clk
0:02:09]} 10. Nbxd4 {[%clk 0:02:43.1]} 10... Nxd4 {[%clk 0:02:08.8]} 11. Nxd4
{[%clk 0:02:44]} 11... a6 {[%clk 0:02:08.9]} 12. Be3 {[%clk 0:02:43.3]} 12...
Qc7 {[%clk 0:02:07.1]} 13. Bb3 {[%clk 0:02:38.4]} 13... Bd6 {[%clk 0:02:04.1]}
14. h3 {[%clk 0:02:37.2]} 14... Bd7 {[%clk 0:02:00.4]} 15. Qf3 {[%clk
0:02:32.1]} 15... O-O-O {[%clk 0:01:35.1]} 16. a4 {[%clk 0:02:25.9]} 16... Kb8
{[%clk 0:01:32.4]} 17. a5 {[%clk 0:02:21.4]} 17... e5 {[%clk 0:01:11.1]} 18.
Rfd1 {[%clk 0:00:58.5]} 18... exd4 {[%clk 0:01:03.1]} 19. Bxd4 {[%clk
0:00:59.4]} 19... Bc5 {[%clk 0:00:59.6]} 20. Bc3 {[%clk 0:00:52.1]} 20... Bc6
{[%clk 0:00:56.3]} 21. Qf5 {[%clk 0:00:50.7]} 21... Ka7 {[%clk 0:00:45.7]} 22.
Qxc5+ {[%clk 0:00:49.8]} 1-0

[Event "Early-Titled-Tuesday-Blitz-March-05-2024"]
[Site "Chess.com"]
[Date "2024.03.05"]
[Round "7"]
[White "IM_ArthurDW08"]
[Black "rdarruda"]
[Result "1-0"]
[WhiteElo "2774"]
[BlackElo "2514"]
[TimeControl "180+1"]
[EndTime "9:18:09 PST"]
[Termination "IM_ArthurDW08 won by resignation"]

1. e4 {[%clk 0:03:00.9]} 1... c5 {[%clk 0:02:49.6]} 2. Nf3 {[%clk 0:02:59.8]}
2... Nc6 {[%clk 0:02:48.8]} 3. d4 {[%clk 0:02:57.7]} 3... cxd4 {[%clk
0:02:49.7]} 4. Nxd4 {[%clk 0:02:58.3]} 4... e5 {[%clk 0:02:49.9]} 5. Nb5 {[%clk
0:02:58.6]} 5... a6 {[%clk 0:02:50.2]} 6. Nd6+ {[%clk 0:02:58.1]} 6... Bxd6
{[%clk 0:02:50.8]} 7. Qxd6 {[%clk 0:02:58.9]} 7... Qe7 {[%clk 0:02:51]} 8. Qd1
{[%clk 0:02:55.4]} 8... Nf6 {[%clk 0:02:49]} 9. Nc3 {[%clk 0:02:55.1]} 9... d6
{[%clk 0:02:48.2]} 10. Bg5 {[%clk 0:02:52.6]} 10... Be6 {[%clk 0:02:48]} 11. Nd5
{[%clk 0:02:44.3]} 11... Bxd5 {[%clk 0:02:46.7]} 12. exd5 {[%clk 0:02:45.2]}
12... Nb8 {[%clk 0:02:46.7]} 13. Be2 {[%clk 0:02:36]} 13... Nbd7 {[%clk
0:02:45.2]} 14. c4 {[%clk 0:02:32.6]} 14... h6 {[%clk 0:02:45.1]} 15. Be3 {[%clk
0:02:31.8]} 15... O-O {[%clk 0:02:42]} 16. O-O {[%clk 0:02:31.2]} 16... Ne8
{[%clk 0:02:41.1]} 17. b4 {[%clk 0:02:28.5]} 17... b6 {[%clk 0:02:40.1]} 18. f3
{[%clk 0:02:03.1]} 18... f5 {[%clk 0:02:37.3]} 19. a4 {[%clk 0:01:45.8]} 19...
a5 {[%clk 0:02:36]} 20. Qb3 {[%clk 0:01:46.2]} 20... axb4 {[%clk 0:02:31.3]} 21.
Qxb4 {[%clk 0:01:47.1]} 21... Qd8 {[%clk 0:02:23.2]} 22. Rfb1 {[%clk 0:01:38.7]}
22... Qe7 {[%clk 0:01:44.5]} 23. Bxb6 {[%clk 0:01:34.6]} 23... Nxb6 {[%clk
0:01:40]} 24. Qxb6 {[%clk 0:01:35.5]} 24... Nc7 {[%clk 0:01:39.1]} 25. c5 {[%clk
0:01:32.4]} 25... Rfd8 {[%clk 0:01:29.2]} 26. Qc6 {[%clk 0:01:15.1]} 26... dxc5
{[%clk 0:01:17.7]} 27. Rb7 {[%clk 0:01:14.2]} 27... Rac8 {[%clk 0:01:17.4]} 28.
Bc4 {[%clk 0:01:11.8]} 28... Qd6 {[%clk 0:01:15.6]} 29. Rb6 {[%clk 0:01:03.1]}
29... Qxc6 {[%clk 0:01:07.9]} 30. Rxc6 {[%clk 0:01:04]} 30... Kf8 {[%clk
0:00:55.9]} 31. d6 {[%clk 0:00:59]} 31... Na8 {[%clk 0:00:46.8]} 32. Rxc8 {[%clk
0:00:59.1]} 32... Rxc8 {[%clk 0:00:46.8]} 33. Rb1 {[%clk 0:00:59.8]} 33... Rd8
{[%clk 0:00:40.9]} 34. Rb7 {[%clk 0:00:58.5]} 1-0

[Event "Early-Titled-Tuesday-Blitz-March-05-2024"]
[Site "Chess.com"]
[Date "2024.03.05"]
[Round "7"]
[White "VinzentSpitzl"]
[Black "TheAlienParty"]
[Result "1-0"]
[WhiteElo "2529"]
[BlackElo "2389"]
[TimeControl "180+1"]
[EndTime "9:18:10 PST"]
[Termination "VinzentSpitzl won by checkmate"]

1. e4 {[%clk 0:02:54]} 1... e5 {[%clk 0:02:58.7]} 2. Nf3 {[%clk 0:02:52.9]} 2...
Nc6 {[%clk 0:02:58.4]} 3. Bb5 {[%clk 0:02:53.5]} 3... a6 {[%clk 0:02:58]} 4. Ba4
{[%clk 0:02:53.1]} 4... d6 {[%clk 0:02:57.9]} 5. c3 {[%clk 0:02:51]} 5... Bd7
{[%clk 0:02:56.9]} 6. d4 {[%clk 0:02:49.9]} 6... exd4 {[%clk 0:02:25.8]} 7. cxd4
{[%clk 0:02:48]} 7... Nf6 {[%clk 0:02:25.5]} 8. O-O {[%clk 0:02:46.8]} 8... Nxe4
{[%clk 0:02:17.4]} 9. Re1 {[%clk 0:02:34.3]} 9... d5 {[%clk 0:02:16.1]} 10. Nc3
{[%clk 0:02:34.3]} 10... Bb4 {[%clk 0:02:05.7]} 11. Nxd5 {[%clk 0:02:09.4]}
11... Bxe1 {[%clk 0:02:04.7]} 12. Qxe1 {[%clk 0:02:09.8]} 12... f5 {[%clk
0:02:00.5]} 13. Bg5 {[%clk 0:02:04.1]} 13... Qc8 {[%clk 0:01:53.9]} 14. Bxc6
{[%clk 0:01:22.8]} 14... bxc6 {[%clk 0:01:48.9]} 15. Qb4 {[%clk 0:01:14.3]}
15... c5 {[%clk 0:01:26.4]} 16. dxc5 {[%clk 0:01:14.2]} 16... c6 {[%clk
0:01:26.2]} 17. Nb6 {[%clk 0:01:04]} 17... Qb7 {[%clk 0:01:11.2]} 18. Qd4 {[%clk
0:00:53.5]} 18... Be6 {[%clk 0:01:05.2]} 19. Nxa8 {[%clk 0:00:48.3]} 19... Nxg5
{[%clk 0:01:02.8]} 20. Nxg5 {[%clk 0:00:45.4]} 20... Bd5 {[%clk 0:00:59.3]} 21.
Qe5+ {[%clk 0:00:37.6]} 21... Kf8 {[%clk 0:00:54.1]} 22. Re1 {[%clk 0:00:33.8]}
22... Qxa8 {[%clk 0:00:49.4]} 23. Qe7+ {[%clk 0:00:33.2]} 23... Kg8 {[%clk
0:00:49]} 24. Qe8+ {[%clk 0:00:33.5]} 24... Qxe8 {[%clk 0:00:46.4]} 25. Rxe8#
{[%clk 0:00:34.4]} 1-0

[Event "Early-Titled-Tuesday-Blitz-March-05-2024"]
[Site "Chess.com"]
[Date "2024.03.05"]
[Round "7"]
[White "Mikasinski"]
[Black "secrethawk1"]
[Result "1-0"]
[WhiteElo "2616"]
[BlackElo "2486"]
[TimeControl "180+1"]
[EndTime "9:18:18 PST"]
[Termination "Mikasinski won by checkmate"]

1. e4 {[%clk 0:03:00.9]} 1... c6 {[%clk 0:02:57.6]} 2. d4 {[%clk 0:03:00.8]}
2... d5 {[%clk 0:02:58.5]} 3. e5 {[%clk 0:03:01.5]} 3... Bf5 {[%clk 0:02:57.8]}
4. h4 {[%clk 0:03:02.2]} 4... h5 {[%clk 0:02:57.3]} 5. Bd3 {[%clk 0:03:02.8]}
5... Bxd3 {[%clk 0:02:56.7]} 6. Qxd3 {[%clk 0:03:03.7]} 6... e6 {[%clk
0:02:57.4]} 7. Bg5 {[%clk 0:03:04.1]} 7... Be7 {[%clk 0:02:55.5]} 8. Nf3 {[%clk
0:03:04]} 8... Nh6 {[%clk 0:02:53.4]} 9. Bxh6 {[%clk 0:03:03.4]} 9... Rxh6
{[%clk 0:02:52.7]} 10. Nbd2 {[%clk 0:03:04.1]} 10... c5 {[%clk 0:02:52]} 11. c4
{[%clk 0:03:04]} 11... Nc6 {[%clk 0:02:50.1]} 12. cxd5 {[%clk 0:03:03.9]} 12...
Qxd5 {[%clk 0:02:49.6]} 13. O-O {[%clk 0:02:58.2]} 13... cxd4 {[%clk 0:02:48.2]}
14. Rfe1 {[%clk 0:02:51.8]} 14... Rg6 {[%clk 0:02:33.5]} 15. a3 {[%clk
0:02:48.7]} 15... Rd8 {[%clk 0:02:27.2]} 16. Rac1 {[%clk 0:02:47]} 16... Kf8
{[%clk 0:02:22.1]} 17. Re4 {[%clk 0:02:45.2]} 17... Rg4 {[%clk 0:02:18.2]} 18.
b4 {[%clk 0:02:38.2]} 18... Rxe4 {[%clk 0:02:17]} 19. Qxe4 {[%clk 0:02:35.9]}
19... Qa2 {[%clk 0:01:53.7]} 20. b5 {[%clk 0:02:29.6]} 20... Qxa3 {[%clk
0:01:43.9]} 21. Rc4 {[%clk 0:02:26.7]} 21... Na5 {[%clk 0:01:32.1]} 22. Rc7
{[%clk 0:02:22.8]} 22... Kg8 {[%clk 0:01:24.1]} 23. Ng5 {[%clk 0:02:08.9]} 23...
Bxg5 {[%clk 0:01:14.3]} 24. hxg5 {[%clk 0:02:09.8]} 24... g6 {[%clk 0:00:52.6]}
25. Qf4 {[%clk 0:02:08.2]} 25... Qf8 {[%clk 0:00:50.2]} 26. Ne4 {[%clk
0:02:07.5]} 26... d3 {[%clk 0:00:11.7]} 27. Nd6 {[%clk 0:02:07]} 27... d2 {[%clk
0:00:12]} 28. Qxd2 {[%clk 0:02:05.7]} 28... Qg7 {[%clk 0:00:12.2]} 29. Qf4
{[%clk 0:02:01.7]} 29... Rf8 {[%clk 0:00:09]} 30. Ne4 {[%clk 0:01:59]} 30... b6
{[%clk 0:00:06.9]} 31. Nf6+ {[%clk 0:01:59.5]} 31... Kh8 {[%clk 0:00:06.8]} 32.
Qd4 {[%clk 0:01:57.7]} 32... Nb3 {[%clk 0:00:06.1]} 33. Qd6 {[%clk 0:01:56.9]}
33... Nc5 {[%clk 0:00:04.3]} 34. Rxa7 {[%clk 0:01:57.2]} 34... Rc8 {[%clk
0:00:02]} 35. Rc7 {[%clk 0:01:54.5]} 35... Qf8 {[%clk 0:00:01.5]} 36. Qxb6
{[%clk 0:01:51.3]} 36... Rd8 {[%clk 0:00:01.5]} 37. Qxc5 {[%clk 0:01:46.9]}
37... Rd1+ {[%clk 0:00:02]} 38. Kh2 {[%clk 0:01:47.2]} 38... Rd8 {[%clk
0:00:01.4]} 39. Qxf8+ {[%clk 0:01:46.5]} 39... Rxf8 {[%clk 0:00:02.3]} 40. b6
{[%clk 0:01:46.7]} 40... h4 {[%clk 0:00:02.3]} 41. b7 {[%clk 0:01:46.5]} 41...
h3 {[%clk 0:00:02.7]} 42. Rc8 {[%clk 0:01:46.9]} 42... Kg7 {[%clk 0:00:01.5]}
43. Rxf8 {[%clk 0:01:47.1]} 43... hxg2 {[%clk 0:00:02.4]} 44. Rg8# {[%clk
0:01:47.9]} 1-0